bitfinex/quotes_ETHUSD_20250329
["timestamp","ask_amount","ask_price","bid_price","bid_amount"]
[1743276645530,5.4942,1820.1,1819.6,8.73428613]
[1743276645531,5.49497,1819.9,1819.6,8.73428613]
[1743276645719,3.54473285,1819.8,1819.6,7.97458613]
[1743276646118,9.26684285,1819.8,1819.6,7.97458613]
[1743276647563,3.54473285,1819.8,1819.6,13.47013613]
[1743276647757,3.54473285,1819.8,1819.6,14.81714974]
[1743276648340,3.54473285,1819.8,1819.4,7.97458613]
[1743276648341,0.227,1819.7,1819.4,7.97458613]
[1743276648539,9.04075285,1819.5,1819.2,13.47138613]
[1743276648951,9.04075285,1819.5,1819.2,7.97458613]
[1743276649176,5.49602,1819.5,1819.2,7.97458613]
[1743276649368,9.26848285,1819.3,1818.9,6.25745]
[1743276649538,3.54473285,1819.1,1819.0,5.49752]
[1743276649740,3.54473285,1819.3,1819.2,5.49692]
[1743276650161,3.54473285,1819.3,1819.1,6.24935]
[1743276650673,5.72272,1819.6,1819.3,5.49649]
[1743276650876,5.72272,1819.6,1819.2,10.99364]
[1743276651076,3.54473285,1819.4,1819.2,5.49672]
[1743276651437,3.54473285,1819.6,1819.2,9.20416626]
[1743276651636,3.54473285,1819.6,1819.3,6.04648]
[1743276651890,3.54473285,1819.4,1819.2,14.64610913]
[1743276652074,3.54473285,1819.4,1819.2,13.47149613]
[1743276652241,3.54473285,1819.4,1819.2,18.96822613]
[1743276652440,3.54473285,1819.4,1819.2,21.53456874]
[1743276653047,3.54473285,1819.4,1819.2,10.54092874]
[1743276653248,3.54473285,1819.4,1819.2,7.97458613]
[1743276654455,3.54473285,1819.4,1819.2,13.47145613]
[1743276654785,3.54473285,1819.4,1819.3,5.49661]
[1743276654982,3.54473285,1819.4,1819.2,13.47135613]
[1743276655986,3.54473285,1819.4,1819.2,7.97458613]
[1743276656939,3.54473285,1819.4,1819.1,13.47171613]
[1743276660266,3.54473285,1819.4,1819.2,5.49678]
[1743276662489,5.49672,1819.3,1819.1,7.97458613]
[1743276662645,9.26865285,1819.2,1818.8,16.38912]
[1743276662842,9.26865285,1819.2,1818.8,18.86558613]
[1743276663077,9.26865285,1819.2,1818.8,24.36358613]
[1743276665672,3.54473285,1819.2,1819.0,5.49748]
[1743276665871,3.54473285,1819.2,1819.1,5.49722]
[1743276666173,3.54473285,1819.2,1818.9,5.49772]
[1743276666545,3.77173285,1819.4,1819.0,1.3008]
[1743276666751,1.0904201,1819.7,1819.6,5.49571]
[1743276666979,5.7209,1820.2,1819.8,5.4951]
[1743276667285,3.54473285,1820.4,1820.2,5.49376]
[1743276667580,3.54473285,1820.4,1820.1,5.4942]
[1743276667882,9.03815285,1820.4,1820.0,18.86208613]
[1743276668055,9.03815285,1820.4,1820.0,24.35635613]
[1743276668261,9.03815285,1820.4,1820.0,26.84699174]
[1743276668781,3.54473285,1820.4,1820.3,5.49359]
[1743276668967,3.54473285,1820.6,1820.4,5.49314]
[1743276669178,3.54473285,1820.6,1820.3,6.24439]
[1743276669369,3.54473285,1820.6,1820.1,14.01855613]
[1743276669370,9.03759285,1820.6,1820.1,14.01855613]
[1743276669684,3.54473285,1820.4,1820.1,13.91758613]
[1743276669854,0.92645929,1820.6,1820.3,5.49359]
[1743276669855,3.54473285,1820.6,1820.3,5.49359]
[1743276670055,3.54473285,1820.6,1820.2,5.49375]
[1743276670254,3.54473285,1820.6,1820.1,13.91758613]
[1743276670255,3.54473285,1820.6,1820.3,5.49345]
[1743276670680,3.54473285,1820.6,1820.3,10.98689]
[1743276670887,3.54473285,1820.6,1820.3,5.49344]
[1743276671854,3.54473285,1820.6,1820.3,10.98687]
[1743276672081,3.54473285,1820.6,1820.3,5.49343]
[1743276673458,3.54473285,1820.4,1820.2,5.391]
[1743276673662,3.54473285,1820.4,1820.2,10.8849]
[1743276674351,9.03822285,1820.4,1820.1,7.97458613]
[1743276674555,3.54473285,1820.2,1820.1,7.97458613]
[1743276674800,3.54473285,1820.2,1820.0,5.4944]
[1743276675769,3.54473285,1820.2,1819.9,18.96402613]
[1743276676067,3.54473285,1820.2,1819.9,21.45452874]
[1743276676400,3.54473285,1820.0,1819.9,7.97458613]
[1743276676695,3.54473285,1820.0,1819.7,13.46996613]
[1743276677354,3.54473285,1820.0,1819.7,18.96524613]
[1743276677600,3.54473285,1820.0,1819.8,5.49509]
[1743276677799,3.77173285,1820.6,1820.3,5.49359]
[1743276678085,3.77173285,1820.6,1820.3,5.49348]
[1743276678759,9.26444285,1820.6,1820.3,5.49348]
[1743276679268,9.26444285,1820.6,1820.2,13.46840613]
[1743276679465,9.26444285,1820.6,1820.3,13.46804613]
[1743276679466,3.77173285,1820.6,1820.3,13.46804613]
[1743276679665,3.77173285,1820.6,1820.4,6.24392]
[1743276679666,3.54473285,1820.6,1820.4,6.24392]
[1743276679961,3.54473285,1820.6,1820.4,0.7508]
[1743276680176,9.03744285,1820.6,1820.3,13.46800613]
[1743276680397,14.53034285,1820.6,1820.3,7.97458613]
[1743276680700,9.03744285,1820.6,1820.3,7.97458613]
[1743276680897,3.54473285,1820.4,1820.3,7.97458613]
[1743276681403,9.03802285,1820.4,1820.3,7.97458613]
[1743276682802,3.54473285,1820.4,1820.3,7.97458613]
[1743276683005,3.54473285,1820.4,1820.3,13.46817613]
[1743276683304,3.54473285,1820.4,1820.2,13.46825613]
[1743276683600,3.54473285,1820.4,1820.2,7.97458613]
[1743276683763,9.03815285,1820.4,1820.2,7.97458613]
[1743276684597,5.72059,1820.3,1820.2,7.97458613]
[1743276687938,5.4948,1819.9,1819.6,8.78318613]
[1743276688087,3.54473285,1819.7,1819.4,5.49617]
[1743276688281,3.54473285,1819.7,1819.4,10.99235]
[1743276688622,3.54473285,1819.7,1819.4,5.49617]
[1743276688920,5.49675,1819.3,1818.9,13.47230613]
[1743276689087,5.49675,1819.3,1819.0,7.97458613]
[1743276689088,3.54473285,1819.1,1819.0,7.97458613]
[1743276689710,3.54473285,1819.3,1819.0,13.47210613]
[1743276689896,6.54473285,1819.3,1819.2,5.49692]
[1743276690096,6.54473285,1819.3,1819.1,5.49722]
[1743276690097,6.54473285,1819.3,1819.1,10.99444]
[1743276690380,6.54473285,1819.3,1819.0,7.97458613]
[1743276690584,12.04147285,1819.3,1819.0,7.97458613]
[1743276690784,3.54473285,1819.1,1819.0,7.97458613]
[1743276691096,3.54473285,1819.1,1819.0,9.32181574]
[1743276692331,3.54473285,1819.1,1819.0,7.97458613]
[1743276693695,5.49756,1819.0,1818.5,13.36358613]
[1743276694020,3.54473285,1818.6,1818.4,7.97458613]
[1743276694197,3.54473285,1818.6,1818.4,13.47387613]
[1743276694398,3.54473285,1818.6,1818.4,10.49178374]
[1743276695024,4.19220845,1818.8,1818.5,5.49903]
[1743276695221,9.69034845,1818.8,1818.5,5.49903]
[1743276695393,9.69034845,1818.8,1818.4,15.99105374]
[1743276695715,15.18870845,1818.8,1818.4,13.47385613]
[1743276696122,9.69034845,1818.8,1818.4,13.47385613]
[1743276696289,15.18868845,1818.8,1818.4,13.47385613]
[1743276696485,5.49856,1818.7,1818.4,7.97458613]
[1743276696683,5.49873,1818.6,1818.4,7.97458613]
[1743276696883,9.69093845,1818.6,1818.4,7.97458613]
[1743276697489,15.18989845,1818.6,1818.4,7.97458613]
[1743276697689,5.49903,1818.5,1818.1,14.27881613]
[1743276697899,9.69093845,1818.6,1818.2,5.49964]
[1743276698113,4.19220845,1818.6,1818.3,5.49956]
[1743276698309,9.69111845,1818.6,1818.2,5.49964]
[1743276700818,5.49905,1818.5,1818.1,14.27881613]
[1743276701133,4.19220845,1818.4,1818.1,13.47481613]
[1743276701296,5.49994,1818.2,1818.1,7.97458613]
[1743276701497,5.49994,1818.2,1817.7,5.5012]
[1743276701498,5.50037,1818.1,1817.7,6.3052]
[1743276701826,4.19220845,1818.2,1817.7,6.3052]
[1743276701827,4.19220845,1818.2,1817.7,8.77858613]
[1743276702013,4.19220845,1818.2,1817.8,5.50106]
[1743276702211,9.69239845,1818.2,1817.8,11.00209]
[1743276702426,9.69237845,1818.2,1817.8,5.50103]
[1743276702720,9.69237845,1818.2,1817.8,11.00206]
[1743276703123,15.19247845,1818.2,1817.8,5.50103]
[1743276703324,5.50059,1818.0,1817.7,7.97458613]
[1743276703525,0.227,1817.9,1817.7,7.97458613]
[1743276704998,5.72792,1817.9,1817.7,7.97458613]
[1743276705205,11.229,1817.9,1817.7,7.97458613]
[1743276705411,5.72792,1817.9,1817.7,7.97458613]
[1743276706332,11.9697678,1817.9,1817.4,5.50221]
[1743276706540,3.9676978,1817.9,1817.6,5.50166]
[1743276706695,9.4687578,1817.9,1817.5,5.50203]
[1743276706900,9.4687578,1817.9,1817.6,5.50174]
[1743276706901,3.9676978,1817.9,1817.6,5.50174]
[1743276707140,3.9676978,1817.9,1817.6,5.50169]
[1743276707300,9.4686778,1817.9,1817.5,5.50203]
[1743276707623,14.9697778,1817.9,1817.5,5.50203]
[1743276707810,9.4686778,1817.9,1817.5,5.50203]
[1743276708327,6.44816778,1817.8,1817.4,5.50234]
[1743276708737,0.94686778,1817.8,1817.3,5.392]
[1743276708908,9.4686878,1817.9,1817.5,5.50177]
[1743276709655,14.9697678,1817.9,1817.5,5.50177]
[1743276709937,9.4686878,1817.9,1817.5,5.50177]
[1743276710307,3.9676978,1817.9,1817.4,6.05236]
[1743276710527,3.227,1817.9,1817.7,5.50132]
[1743276710806,3.227,1817.9,1817.5,6.30435]
[1743276710807,0.227,1817.9,1817.6,5.5017]
[1743276711732,3.0,1818.0,1817.6,5.5017]
[1743276712038,8.50061,1818.0,1817.6,5.5017]
[1743276712247,8.50061,1818.0,1817.6,11.00324]
[1743276712540,3.0,1818.0,1817.7,5.50132]
[1743276713334,3.0,1818.0,1817.8,5.50107]
[1743276714639,3.0,1818.0,1817.7,5.50132]
[1743276714847,0.227,1818.4,1818.2,5.49983]
[1743276715013,3.54938048,1818.3,1818.1,5.50009]
[1743276715211,3.54938048,1818.3,1818.0,5.5005]
[1743276715426,3.54938048,1818.1,1817.8,13.47573613]
[1743276715621,3.54938048,1818.1,1817.9,5.50084]
[1743276717943,5.72771,1818.0,1817.6,5.50153]
[1743276718148,3.54938048,1817.9,1817.6,5.50153]
[1743276718552,3.54938048,1817.9,1817.8,5.50115]
[1743276718919,3.54938048,1817.9,1817.7,5.50137]
[1743276719154,3.54938048,1817.9,1817.6,5.50164]
[1743276720257,3.54938048,1817.9,1817.5,5.502]
[1743276720258,9.97794353,1817.9,1817.5,5.502]
[1743276720929,3.54938048,1817.7,1817.4,11.80698]
[1743276721245,3.54938048,1817.7,1817.5,5.50204]
[1743276721628,0.227,1817.6,1817.3,13.47721613]
[1743276721954,3.54938048,1817.5,1817.3,13.47711613]
[1743276722150,3.54938048,1817.5,1817.3,18.97962613]
[1743276722353,3.54938048,1817.5,1817.3,13.47709613]
[1743276723759,3.54938048,1817.5,1817.3,7.97458613]
[1743276724259,9.05160048,1817.5,1817.3,7.97458613]
[1743276724569,5.50236,1817.4,1817.0,13.47813613]
[1743276724737,3.54938048,1817.2,1817.0,7.97458613]
[1743276724933,3.77638048,1817.2,1817.0,7.97458613]
[1743276725132,3.77638048,1817.2,1817.0,13.47814613]
[1743276726141,3.77638048,1817.2,1817.0,18.98151613]
[1743276726434,3.54938048,1817.4,1817.1,5.50327]
[1743276726639,0.227,1817.7,1817.4,5.50218]
[1743276727035,0.227,1817.7,1817.3,7.97458613]
[1743276727036,5.50226,1817.5,1817.3,7.97458613]
[1743276727244,3.54938048,1817.4,1817.3,7.97458613]
[1743276728046,5.50183,1817.6,1817.3,7.97458613]
[1743276728254,3.54938048,1817.5,1817.3,7.97458613]
[1743276728827,3.54938048,1817.5,1817.3,13.47719613]
[1743276729057,0.227,1817.7,1817.5,5.50203]
[1743276729261,3.54938048,1817.6,1817.3,7.97458613]
[1743276729477,3.54938048,1817.6,1817.3,13.47713613]
[1743276729665,3.54938048,1817.6,1817.4,5.50225]
[1743276729863,3.54938048,1817.6,1817.5,5.50206]
[1743276730082,3.54938048,1817.6,1817.4,5.50225]
[1743276730530,3.54938048,1817.7,1817.3,1.34774361]
[1743276730731,3.54938048,1817.5,1817.2,13.47733613]
[1743276730945,3.54938048,1817.5,1817.2,7.97458613]
[1743276731149,9.05204048,1817.3,1817.2,7.97458613]
[1743276731351,5.50393,1816.9,1816.6,7.97458613]
[1743276731644,3.54938048,1816.7,1816.6,7.97458613]
[1743276732056,3.92701853,1816.7,1816.3,6.26376]
[1743276732259,9.43151853,1816.7,1816.3,6.26376]
[1743276732970,3.54938048,1816.5,1816.3,5.50567]
[1743276733335,3.0,1816.8,1816.4,5.50523]
[1743276733537,3.0,1816.8,1816.3,5.50568]
[1743276733538,3.0,1816.7,1816.3,5.50568]
[1743276733760,3.54938048,1816.6,1816.2,7.97458613]
[1743276733959,3.0,1816.8,1816.3,0.55]
[1743276734163,6.54938048,1816.8,1816.3,0.60505568]
[1743276734480,6.54938048,1816.8,1816.5,5.50509]
[1743276734669,3.77638048,1817.0,1816.8,5.50404]
[1743276734842,0.227,1817.0,1816.6,5.50461]
[1743276735036,0.227,1817.0,1816.7,5.50442]
[1743276735245,0.227,1817.0,1816.7,10.90871]
[1743276735568,4.20016998,1817.1,1816.8,5.50405]
[1743276735871,0.227,1817.2,1816.9,5.50376]
[1743276736069,15.45071803,1817.7,1817.2,5.50283]
[1743276736270,9.70251998,1817.5,1817.0,13.47791613]
[1743276736474,15.20475998,1817.5,1817.0,18.98128613]
[1743276736672,4.20016998,1817.5,1817.0,7.97458613]
[1743276736846,0.227,1817.6,1817.3,5.50246]
[1743276737045,0.227,1817.6,1817.4,5.50213]
[1743276737543,0.227,1817.8,1817.6,5.50176]
[1743276737746,0.227,1818.0,1817.7,5.50116]
[1743276738074,5.7276,1818.0,1817.6,11.00321]
[1743276738369,1.349808,1818.0,1817.6,11.00323]
[1743276738573,5.54997798,1818.0,1817.4,0.55]
[1743276738759,4.42716998,1818.0,1817.4,0.55]
[1743276739076,4.42716998,1818.0,1817.5,5.50187]
[1743276739077,9.92786998,1818.0,1817.5,5.50187]
[1743276739284,9.92771998,1818.0,1817.6,5.50156]
[1743276739459,4.42716998,1818.0,1817.7,5.50144]
[1743276739647,4.42716998,1818.0,1817.6,5.50156]
[1743276739648,3.0,1818.1,1817.8,5.50101]
[1743276739848,4.270011,1818.1,1817.7,5.50142]
[1743276740772,9.770451,1818.1,1817.6,5.50154]
[1743276740994,5.50104,1817.9,1817.5,5.50205]
[1743276741194,5.35104,1817.9,1817.5,5.50205]
[1743276741757,10.85217,1817.9,1817.4,5.50235]
[1743276741958,5.50159,1817.7,1817.4,7.97458613]
[1743276742267,11.00333,1817.7,1817.4,7.97458613]
[1743276743378,5.50178,1817.6,1817.4,7.97458613]
[1743276744194,12.92837998,1817.8,1817.4,7.97458613]
[1743276744482,14.67495748,1817.8,1817.4,13.47680613]
[1743276744683,14.67507748,1817.8,1817.4,13.47680613]
[1743276745070,20.17645748,1817.8,1817.4,13.47680613]
[1743276745279,0.227,1817.8,1817.4,7.97458613]
[1743276745481,8.50096,1817.9,1817.4,14.24853613]
[1743276745688,5.50133,1817.8,1817.4,18.97928613]
[1743276745882,11.00272,1817.8,1817.4,13.47693613]
[1743276746056,15.20288998,1817.8,1817.4,13.47693613]
[1743276746254,17.02317898,1817.8,1817.4,13.47693613]
[1743276746550,11.52178898,1817.8,1817.4,13.47693613]
[1743276746752,6.02045898,1817.8,1817.4,13.47683613]
[1743276746953,6.02045898,1817.8,1817.5,5.50199]
[1743276748897,11.52162898,1817.8,1817.4,5.50217]
[1743276749071,5.50176,1817.6,1817.3,7.97458613]
[1743276749258,9.8808529,1817.7,1817.3,7.97458613]
[1743276749459,9.8808329,1817.7,1817.3,13.47721613]
[1743276750175,4.42716998,1818.0,1817.6,5.50176]
[1743276750364,3.227,1818.0,1817.6,5.50162]
[1743276750706,0.227,1818.0,1817.7,5.50124]
[1743276750868,3.227,1818.0,1817.7,5.50124]
[1743276751071,0.227,1818.0,1817.3,15.1010051]
[1743276751312,0.227,1818.2,1818.0,5.50049]
[1743276751599,3.227,1818.2,1817.8,5.50096]
[1743276751763,12.92722998,1818.2,1817.8,5.50096]
[1743276751965,7.42716998,1818.2,1817.9,11.0014]
[1743276752378,3.0,1818.2,1818.0,5.5004]
[1743276753178,3.0,1818.3,1818.1,5.50018]
[1743276753999,0.227,1818.6,1818.4,5.49915]
[1743276754563,0.227,1818.6,1818.3,5.49958]
[1743276755269,0.227,1818.6,1818.4,5.49931]
[1743276755464,0.227,1818.6,1818.3,5.49958]
[1743276756378,1.649424,1818.6,1818.3,10.99902]
[1743276756780,1.649424,1818.6,1818.3,5.49944]
[1743276758011,3.0,1818.5,1818.2,5.49994]
[1743276758214,3.0,1818.5,1818.2,10.99971]
[1743276758395,3.0,1818.5,1818.3,5.49962]
[1743276758795,1.649424,1818.6,1818.4,5.49934]
[1743276758969,0.227,1818.6,1818.4,5.49934]
[1743276760596,0.227,1818.6,1818.3,5.49962]
[1743276760822,3.0,1818.5,1818.2,10.99966]
[1743276760985,0.227,1818.6,1818.3,5.49963]
[1743276761190,3.0,1818.7,1818.4,5.49934]
[1743276761430,8.49855,1818.7,1818.3,5.49963]
[1743276761829,13.99714,1818.7,1818.3,5.49963]
[1743276762051,8.49844,1818.7,1818.4,5.49931]
[1743276762318,3.0,1818.7,1818.4,5.49931]
[1743276762498,3.0,1818.7,1818.4,5.49922]
[1743276763020,4.85425139,1818.8,1818.5,5.49903]
[1743276763202,3.5481643,1818.8,1818.6,5.49859]
[1743276763398,3.7751643,1819.0,1818.4,6.81471]
[1743276763703,3.7751643,1819.0,1818.7,5.4983]
[1743276763904,3.5481643,1818.8,1818.5,5.49894]
[1743276764105,3.5481643,1818.6,1818.3,10.99906]
[1743276764305,3.5481643,1818.6,1818.3,5.49944]
[1743276764514,9.2739143,1818.6,1818.2,13.47449613]
[1743276765086,3.5481643,1818.4,1818.2,7.97458613]
[1743276765292,3.5481643,1818.4,1818.1,5.5001]
[1743276765493,3.5481643,1818.4,1818.2,5.49974]
[1743276765793,3.5481643,1818.4,1818.1,11.00015]
[1743276766823,3.5481643,1818.4,1818.2,5.4998]
[1743276767025,3.0,1818.5,1818.2,5.4998]
[1743276768100,5.389,1818.7,1818.5,5.49889]
[1743276768321,3.0,1818.7,1818.5,5.49889]
[1743276769059,11.04823435,1819.0,1818.6,5.49849]
[1743276769209,4.19308492,1819.0,1818.7,5.49843]
[1743276769408,3.0,1818.9,1818.7,5.49843]
[1743276769842,8.49785,1818.9,1818.5,18.97242613]
[1743276770258,3.0,1818.9,1818.6,5.49871]
[1743276770610,3.0,1818.9,1818.6,7.39577161]
[1743276770931,3.0,1818.9,1818.6,5.49856]
[1743276771135,3.0,1818.9,1818.6,5.49873]
[1743276771336,3.0,1818.9,1818.7,5.49831]
[1743276771531,3.0,1818.9,1818.7,10.99661]
[1743276771717,3.0,1818.9,1818.7,5.4983]
[1743276771919,0.227,1819.1,1818.7,1.099701]
[1743276772250,0.227,1819.3,1818.8,5.49812]
[1743276772574,5.388,1819.4,1819.2,5.49663]
[1743276772856,3.227,1819.5,1819.2,5.49663]
[1743276773748,8.72301,1819.5,1819.1,5.49717]
[1743276774114,8.72301,1819.5,1819.0,13.47204613]
[1743276774314,10.12619304,1819.5,1819.0,13.47185613]
[1743276774722,10.12619304,1819.5,1819.1,5.49711]
[1743276774941,8.72301,1819.5,1819.1,5.49711]
[1743276775149,3.227,1819.5,1819.0,7.97458613]
[1743276775325,3.0,1819.5,1819.3,5.49648]
[1743276775823,3.0,1819.5,1819.2,6.30424]
[1743276776241,4.19308492,1819.6,1819.2,6.30412]
[1743276776447,4.19308492,1819.6,1819.2,6.934532]
[1743276776740,9.68880492,1819.6,1819.2,12.431272]
[1743276776941,9.68880492,1819.6,1819.2,6.934532]
[1743276777314,9.68880492,1819.6,1819.2,6.934712]
[1743276777831,1.09346489,1819.7,1819.4,5.49609]
[1743276778031,8.49514,1819.8,1819.5,0.549609]
[1743276778346,8.49514,1819.8,1819.4,5.49609]
[1743276779119,5.49583,1819.6,1819.3,7.97458613]
[1743276779318,5.72317,1819.5,1819.3,7.97458613]
[1743276781257,5.49631,1819.4,1819.3,7.97458613]
[1743276781475,5.49667,1819.3,1819.0,5.49749]
[1743276782529,12.91611492,1819.5,1819.0,5.49736]
[1743276782718,3.0,1819.4,1819.1,10.99405]
[1743276783037,3.0,1819.4,1819.2,5.4967]
[1743276783637,3.0,1819.4,1819.1,5.497]
[1743276784145,3.0,1819.4,1819.1,10.99409]
[1743276784350,0.227,1819.5,1819.2,5.49668]
[1743276784946,5.72323,1819.5,1819.1,5.49715]
[1743276785138,5.72323,1819.5,1819.1,10.99419]
[1743276785338,5.72323,1819.5,1819.1,5.49704]
[1743276785655,5.72323,1819.5,1819.2,5.4969]
[1743276786352,5.49708,1819.2,1819.0,7.97458613]
[1743276786723,10.99423,1819.2,1819.0,7.97458613]
[1743276786924,11.22123,1819.2,1819.0,7.97458613]
[1743276787344,5.49722,1819.1,1819.0,7.97458613]
[1743276787539,3.0,1819.1,1818.6,8.76608613]
[1743276787744,3.0,1819.1,1818.8,5.49813]
[1743276788123,8.49726,1819.1,1818.8,5.49813]
[1743276788524,3.0,1819.1,1818.8,5.49798]
[1743276788860,1.1101742,1819.4,1819.2,5.49667]
[1743276789024,3.54499456,1819.5,1819.2,5.49667]
[1743276789220,0.227,1819.8,1819.7,5.49528]
[1743276789457,3.54499456,1820.0,1819.6,5.49558]
[1743276789628,3.54499456,1820.0,1819.6,11.78253]
[1743276789831,3.54499456,1820.0,1819.6,6.28695]
[1743276790033,9.03960456,1820.0,1819.6,11.78252]
[1743276790263,3.54499456,1820.0,1819.7,5.49529]
[1743276790666,3.54499456,1820.0,1819.6,6.28695]
[1743276790831,42.00857531,1820.1,1819.6,6.28695]
[1743276791162,3.0,1820.0,1819.6,11.78244]
[1743276791456,39.00857531,1820.1,1819.7,5.4954]
[1743276791767,3.0,1820.0,1819.8,5.49503]
[1743276792089,3.0,1820.2,1819.8,10.98996]
[1743276792255,8.49403,1820.2,1819.8,5.49493]
[1743276792427,9.78472153,1820.2,1819.8,5.49493]
[1743276792854,9.90691531,1820.3,1819.8,5.49493]
[1743276792855,4.18623531,1820.3,1819.9,5.49463]
[1743276793056,9.67958531,1820.4,1820.0,6.28589]
[1743276794357,4.18623531,1820.4,1820.0,11.78016]
[1743276795058,12.28893323,1820.5,1820.3,5.49359]
[1743276795059,1.07580323,1820.5,1820.3,5.49359]
[1743276795233,5.71943,1820.7,1820.3,6.28509]
[1743276796135,4.18623531,1820.6,1820.1,5.49393]
[1743276796347,9.67903531,1820.6,1820.2,5.49389]
[1743276796548,5.49361,1820.3,1820.0,0.7915]
[1743276796735,4.18623531,1820.4,1820.0,0.7915]
[1743276797130,9.67964531,1820.4,1820.0,0.7915]
[1743276797567,15.17320531,1820.4,1820.0,6.28578]
[1743276797863,15.17320531,1820.4,1820.0,0.7915]
[1743276798032,4.18623531,1820.2,1819.7,0.7915]
[1743276798231,10.98887,1820.1,1819.7,6.28687]
[1743276798454,5.49452,1820.0,1819.7,0.7915]
[1743276798646,5.49516,1819.8,1819.5,0.7915]
[1743276798844,5.49587,1819.6,1819.3,0.7915]
[1743276799148,5.49556,1819.7,1819.3,6.28798]
[1743276799458,8.49543,1819.7,1819.3,6.28798]
[1743276799655,8.49543,1819.7,1819.3,6.28811]
[1743276800150,5.49588,1819.6,1819.3,0.7915]
[1743276800484,8.49543,1819.7,1819.3,1.4753007]
[1743276800680,5.49574,1819.6,1819.3,0.7915]
[1743276800883,5.49663,1819.3,1819.0,0.7615]
[1743276801171,9.68254531,1819.4,1819.0,0.7615]
[1743276801354,8.72302,1819.5,1819.0,6.25896]
[1743276801550,8.72302,1819.5,1819.1,0.625896]
[1743276801761,5.49656,1819.4,1819.0,0.7615]
[1743276802155,5.4968,1819.3,1819.0,0.7615]
[1743276804365,5.49742,1819.1,1818.6,5.49861]
[1743276804552,5.49798,1818.9,1818.6,0.7615]
[1743276804754,5.49815,1818.8,1818.4,6.26067]
[1743276805671,4.18623531,1819.0,1818.4,6.31567625]
[1743276805993,0.227,1819.1,1818.3,5.49935]
[1743276805994,4.18623531,1818.8,1818.3,5.49935]
[1743276806276,5.49817,1818.8,1818.4,5.49931]
[1743276806485,5.49799,1818.9,1818.6,6.26]
[1743276806486,3.0,1818.9,1818.6,6.26]
[1743276806657,5.49681,1819.3,1818.8,5.49792]
[1743276806857,5.49744,1819.1,1818.7,5.49826]
[1743276807085,5.49744,1819.1,1818.7,10.99656]
[1743276807382,5.49744,1819.1,1818.8,1.099656]
[1743276807553,5.49744,1819.1,1818.7,5.49826]
[1743276808581,5.49744,1819.1,1818.6,6.26022]
[1743276808792,5.49744,1819.1,1818.7,5.4984]
[1743276809089,5.49758,1819.0,1818.6,6.26022]
[1743276809685,5.49758,1819.0,1818.6,6.31520138]
[1743276809856,10.99534,1819.0,1818.7,0.63152014]
[1743276810053,10.99534,1819.0,1818.2,1.861485]
[1743276810054,5.49893,1818.6,1818.2,1.861485]
[1743276810255,5.49932,1818.5,1818.0,6.26176]
[1743276810557,5.49932,1818.5,1818.0,11.76208]
[1743276810773,5.49932,1818.5,1818.1,5.5002]
[1743276810978,5.49932,1818.5,1818.1,6.676396]
[1743276811586,5.49967,1818.3,1818.0,0.7615]
[1743276811753,5.49967,1818.3,1817.9,5.50063]
[1743276812785,9.68558531,1818.4,1818.0,5.50043]
[1743276813156,9.68559531,1818.4,1817.8,11.76358]
[1743276813482,10.99967,1818.3,1817.8,11.76338]
[1743276813682,5.49998,1818.2,1817.9,1.176338]
[1743276813876,5.49998,1818.2,1817.8,11.76349]
[1743276814381,5.49998,1818.2,1817.8,6.26249]
[1743276814766,5.49965,1818.3,1817.9,5.50068]
[1743276815682,15.18516531,1818.4,1818.0,5.50052]
[1743276815882,3.0,1818.4,1818.0,5.50052]
[1743276816090,8.4995,1818.4,1818.0,5.50054]
[1743276816385,8.4995,1818.4,1818.0,6.655673]
[1743276816757,13.99907,1818.4,1818.0,6.655673]
[1743276816960,5.49985,1818.3,1817.8,6.26263]
[1743276817159,5.50005,1818.2,1817.8,6.26263]
[1743276817988,5.49985,1818.3,1817.8,11.76354]
[1743276818186,5.50001,1818.2,1817.8,6.26241]
[1743276819489,5.49985,1818.3,1817.8,6.26241]
[1743276819490,5.49985,1818.3,1817.9,5.50073]
[1743276819658,5.49995,1818.2,1817.9,5.50073]
[1743276819875,0.227,1818.3,1817.8,0.7615]
[1743276820061,5.50043,1818.1,1817.8,0.7615]
[1743276820296,11.00092,1818.1,1817.8,0.7615]
[1743276820509,9.68678531,1818.0,1817.5,6.29162]
[1743276820663,5.50063,1818.0,1817.6,5.50162]
[1743276820866,11.0014,1818.0,1817.6,5.50162]
[1743276821077,5.50063,1818.0,1817.6,5.50162]
[1743276821505,5.50075,1818.0,1817.6,11.00323]
[1743276821793,3.0,1818.3,1818.1,5.5001]
[1743276822135,0.227,1818.5,1818.0,5.5003]
[1743276822498,5.72624,1818.5,1818.0,11.00062]
[1743276822699,5.49935,1818.4,1818.0,11.00062]
[1743276822897,5.49935,1818.4,1818.0,12.179642]
[1743276823612,5.72624,1818.5,1818.1,5.50022]
[1743276825094,5.49739,1819.1,1818.6,6.28816]
[1743276825095,5.49763,1819.0,1818.6,6.28816]
[1743276825595,8.49794,1818.9,1818.6,0.7896]
[1743276825794,5.49794,1818.9,1818.6,0.7896]
[1743276825995,8.49794,1818.9,1818.6,0.7896]
[1743276826296,5.49794,1818.9,1818.6,0.7896]
[1743276826489,8.49794,1818.9,1818.6,0.7896]
[1743276826801,5.49865,1818.7,1818.4,0.7896]
[1743276826971,10.99731,1818.7,1818.4,0.7896]
[1743276827171,5.49865,1818.7,1818.4,0.7896]
[1743276827593,10.99733,1818.7,1818.4,0.7896]
[1743276827786,5.49892,1818.6,1818.2,6.28937]
[1743276827984,5.49892,1818.6,1818.2,7.456807]
[1743276828392,5.49865,1818.7,1818.3,5.49962]
[1743276828715,5.49873,1818.6,1818.2,7.456897]
[1743276828886,5.49865,1818.7,1818.3,5.49958]
[1743276829516,10.99733,1818.7,1818.3,5.49958]
[1743276829712,12.43092097,1818.7,1818.3,5.49958]
[1743276829913,6.93224097,1818.7,1818.3,5.49958]
[1743276830916,5.49865,1818.7,1818.3,5.49948]
[1743276831324,10.99735,1818.7,1818.3,5.49948]